bitfinex/quotes_BTCUSD_20251010
["timestamp","ask_amount","ask_price","bid_price","bid_amount"]
[1760128435849,0.22704,117120.0,117110.0,0.47245601]
[1760128436059,0.25764388,117120.0,117110.0,0.40339601]
[1760128436426,0.25764388,117120.0,117110.0,0.40239601]
[1760128436632,0.25764388,117120.0,117110.0,0.40339601]
[1760128436875,0.25764388,117120.0,117110.0,0.40439601]
[1760128438136,0.25764388,117120.0,117110.0,0.45223601]
[1760128439858,0.25001752,117120.0,117110.0,0.45223601]
[1760128441356,0.25001752,117120.0,117110.0,0.2068796]
[1760128441564,0.28061423,117120.0,117110.0,0.2524896]
[1760128441813,0.27636378,117120.0,117110.0,0.2524896]
[1760128442214,0.30696766,117120.0,117110.0,0.2524896]
[1760128442426,0.27636378,117120.0,117110.0,0.2524896]
[1760128442640,0.30696796,117120.0,117110.0,0.2524896]
[1760128443121,0.04932408,117120.0,117110.0,0.29715598]
[1760128443354,0.38136408,117120.0,117110.0,0.29715598]
[1760128443572,0.38132408,117120.0,117110.0,0.41042994]
[1760128444706,0.35835373,117120.0,117110.0,0.41042994]
[1760128444932,0.35835373,117120.0,117110.0,0.34008994]
[1760128447231,0.35835339,117120.0,117110.0,0.34008994]
[1760128448307,0.3503773,117120.0,117110.0,0.34008994]
[1760128448776,0.35835366,117120.0,117110.0,0.21966166]
[1760128449424,0.38994366,117120.0,117110.0,0.02966]
[1760128449638,1.03586146,117120.0,117100.0,0.19417419]
[1760128449839,1.03586146,117120.0,117110.0,0.1707796]
[1760128450481,1.03586146,117120.0,117100.0,0.19432527]
[1760128450728,0.07087,117110.0,117100.0,0.19432527]
[1760128450940,0.0721773,117110.0,117100.0,0.19432527]
[1760128451155,0.0721773,117110.0,117100.0,0.22398527]
[1760128451359,0.6472251,117110.0,117100.0,0.19432527]
[1760128451773,0.6472251,117110.0,117100.0,0.22398527]
[1760128452016,0.1208373,117110.0,117100.0,0.19432527]
[1760128452433,0.0721773,117110.0,117100.0,0.22598527]
[1760128453291,0.51507,117120.0,117110.0,0.1707796]
[1760128453499,1.77922827,117120.0,117110.0,0.1707796]
[1760128454170,0.01838047,117120.0,117110.0,0.2004396]
[1760128454393,0.06113579,117140.0,117130.0,0.17075044]
[1760128454654,0.66368729,117140.0,117130.0,0.20041044]
[1760128454872,0.14969117,117140.0,117130.0,0.20041044]
[1760128455090,0.51000729,117140.0,117130.0,0.2608867]
[1760128455309,0.70618325,117140.0,117130.0,0.12377044]
[1760128455515,0.3558,117150.0,117140.0,0.17072486]
[1760128455726,0.71416462,117150.0,117140.0,0.22374486]
[1760128455941,0.74575462,117150.0,117140.0,0.22374486]
[1760128456372,0.74575462,117150.0,117140.0,0.19408486]
[1760128456585,0.81662462,117150.0,117140.0,0.19408486]
[1760128456789,0.76796462,117150.0,117140.0,0.19408486]
[1760128456971,0.76796462,117150.0,117140.0,0.22374486]
[1760128457192,0.76796462,117150.0,117140.0,0.22474486]
[1760128458244,0.7416,117150.0,117140.0,0.22474486]
[1760128460519,0.7416,117150.0,117140.0,0.02436]
[1760128460721,0.79824209,117150.0,117140.0,0.02436]
[1760128460936,1.37328989,117150.0,117140.0,0.001]
[1760128461112,1.37329052,117150.0,117140.0,0.001]
[1760128461557,1.39168321,117150.0,117140.0,0.001]
[1760128461762,1.47592566,117150.0,117140.0,0.001]
[1760128463213,1.64664695,117150.0,117140.0,0.001]
[1760128464447,1.64664695,117150.0,117120.0,0.10366315]
[1760128464651,0.02221,117130.0,117120.0,0.10366315]
[1760128464861,0.29684,117130.0,117120.0,0.10366315]
[1760128465212,0.0538,117130.0,117120.0,0.10366315]
[1760128465423,0.24304,117130.0,117120.0,0.12073965]
[1760128465623,0.68776,117130.0,117120.0,0.12173965]
[1760128465830,1.13196,117130.0,117120.0,0.10366315]
[1760128466100,1.16355,117130.0,117120.0,0.10466315]
[1760128466690,1.18576,117130.0,117120.0,0.10466315]
[1760128468826,1.23346,117130.0,117120.0,0.10466315]
[1760128470677,0.78926,117130.0,117120.0,0.10466315]
[1760128470875,0.74156,117130.0,117120.0,0.10466315]
[1760128471731,0.68776,117130.0,117120.0,0.12173965]
[1760128472177,0.71791,117130.0,117120.0,0.12173965]
[1760128473031,0.68776,117130.0,117120.0,0.12173965]
[1760128473474,0.71791,117130.0,117120.0,0.12173965]
[1760128473860,0.74173,117130.0,117120.0,0.17176502]
[1760128474110,0.78943,117130.0,117120.0,0.001]
[1760128474351,0.78943,117130.0,117120.0,0.17176502]
[1760128474591,0.74173,117130.0,117120.0,0.17176502]
[1760128474841,0.78943,117130.0,117120.0,0.001]
[1760128475092,0.78943,117130.0,117120.0,0.17076502]
[1760128475337,1.3644778,117130.0,117120.0,0.17176502]
[1760128475591,1.39683704,117130.0,117120.0,0.17176502]
[1760128476089,1.39683704,117130.0,117120.0,0.001]
[1760128476570,1.39683704,117130.0,117120.0,0.07176502]
[1760128477466,0.95429834,117130.0,117120.0,0.12590502]
[1760128477673,0.95429834,117130.0,117120.0,0.09431502]
[1760128477892,0.97811834,117130.0,117110.0,0.24805858]
[1760128478099,0.60740704,117120.0,117110.0,0.30105348]
[1760128478528,0.85044704,117120.0,117110.0,0.33264348]
[1760128479411,0.85044704,117120.0,117110.0,0.33364348]
[1760128479632,0.88059704,117120.0,117110.0,0.05529108]
[1760128479849,0.95211704,117120.0,117110.0,0.19448068]
[1760128480041,0.95211704,117120.0,117110.0,0.05529108]
[1760128480303,0.90441704,117120.0,117110.0,0.22607068]
[1760128480724,1.31898704,117120.0,117110.0,0.27226068]
[1760128480942,1.29516704,117120.0,117110.0,0.27226068]
[1760128481163,0.07152,117130.0,117120.0,0.17076502]
[1760128481419,0.78943,117130.0,117120.0,0.17076502]
[1760128482040,0.10167,117130.0,117120.0,0.17076502]
[1760128482353,1.39683704,117130.0,117120.0,0.17176502]
[1760128483195,1.39683704,117130.0,117120.0,0.001]
[1760128484094,0.95211704,117130.0,117120.0,0.001]
[1760128484324,1.39683704,117130.0,117110.0,0.1934795]
[1760128484547,0.60740704,117120.0,117110.0,0.1934795]
[1760128484760,0.60740704,117120.0,117110.0,0.2396695]
[1760128484976,0.60740704,117120.0,117110.0,0.2712595]
[1760128487156,0.60740704,117120.0,117110.0,0.2722595]
[1760128487563,1.29516704,117120.0,117110.0,0.2722595]
[1760128489709,0.68776,117120.0,117110.0,0.2722595]
[1760128489915,1.29516704,117120.0,117110.0,0.1722595]
[1760128490239,1.29516704,117120.0,117110.0,0.1835895]
[1760128490390,0.4442,117130.0,117120.0,0.17076502]
[1760128490593,0.68776,117130.0,117120.0,0.88223206]
[1760128490821,0.16552527,117160.0,117140.0,0.17073587]
[1760128490981,0.60740704,117150.0,117140.0,0.24241587]
[1760128491180,0.60740704,117150.0,117140.0,0.88220291]
[1760128491181,0.44472,117150.0,117140.0,0.88220291]
[1760128491382,0.68776,117150.0,117140.0,0.88220291]
[1760128491592,0.24304,117150.0,117140.0,0.27479587]
[1760128491821,0.33196,117150.0,117140.0,0.27479587]
[1760128493596,0.63118704,117160.0,117140.0,0.27479587]
[1760128493802,0.63917106,117160.0,117150.0,0.18205129]
[1760128494031,1.35924106,117160.0,117150.0,0.21443129]
[1760128494238,1.35125704,117160.0,117150.0,0.21443129]
[1760128494434,1.35125704,117160.0,117150.0,0.04371]
[1760128494660,1.35121704,117160.0,117150.0,0.04371]
[1760128495155,0.06422233,117160.0,117150.0,0.20310129]
[1760128495392,0.68787103,117160.0,117150.0,0.26362129]
[1760128495731,1.05207807,117160.0,117150.0,0.26362129]
[1760128496146,0.0371681,117170.0,117160.0,0.17070672]
[1760128496356,0.65255404,117170.0,117160.0,0.17070672]
[1760128496478,0.68466404,117170.0,117160.0,0.03238]
[1760128496705,0.053677,117170.0,117160.0,0.22583672]
[1760128496916,1.31649404,117170.0,117160.0,0.27496672]
[1760128497118,1.31577611,117170.0,117160.0,0.27496672]
[1760128497649,1.34808611,117170.0,117160.0,0.05513]
[1760128497853,1.42014611,117170.0,117160.0,0.02275]
[1760128498270,1.41216721,117170.0,117160.0,0.02275]
[1760128498480,1.42014364,117170.0,117160.0,0.02275]
[1760128499239,1.42014364,117170.0,117160.0,0.05486]
[1760128499689,1.42014364,117170.0,117150.0,0.01139]
[1760128499910,0.0765366,117170.0,117160.0,0.05486]
[1760128500133,1.12862364,117170.0,117160.0,0.05486]
[1760128501005,1.11615347,117170.0,117160.0,0.05486]
[1760128501212,1.40607347,117170.0,117150.0,0.22899028]
[1760128501441,6.15843941,117160.0,117130.0,0.02255]
[1760128501676,0.80195976,117140.0,117130.0,0.00015103]
[1760128501922,0.92177291,117140.0,117130.0,0.00015103]
[1760128502147,0.96869291,117140.0,117130.0,0.00015103]
[1760128502602,0.19055,117140.0,117130.0,0.00015103]
[1760128502822,0.79795704,117140.0,117130.0,0.00015103]
[1760128503064,0.87977291,117140.0,117130.0,0.00015103]
[1760128503282,1.39671704,117140.0,117130.0,0.00015103]
[1760128503509,1.36451665,117140.0,117130.0,0.00015103]
[1760128503729,1.53525252,117140.0,117130.0,0.00015103]
[1760128504471,1.61949497,117140.0,117130.0,0.00015103]
[1760128504681,6.48385497,117140.0,117130.0,0.00015103]
[1760128504908,6.83182923,117140.0,117130.0,0.00015103]
[1760128505143,6.85019986,117140.0,117130.0,0.00015103]
[1760128505567,7.08105826,117140.0,117130.0,0.00015103]
[1760128506240,7.73681826,117140.0,117130.0,0.00015103]
[1760128507619,7.75021115,117140.0,117130.0,0.00015103]
[1760128508479,7.76615227,117140.0,117130.0,0.00015103]
[1760128508650,8.06615227,117140.0,117130.0,0.00015103]
[1760128509662,7.88255722,117140.0,117130.0,0.00015103]
[1760128510855,0.51930134,117130.0,117090.0,0.1032188]
[1760128511060,4.86436,117110.0,117100.0,0.17079389]
[1760128511262,0.02559,117110.0,117090.0,0.18583587]
[1760128511465,0.04158,117110.0,117100.0,0.17079419]
[1760128511672,0.28462,117110.0,117100.0,0.17079419]
[1760128512270,0.28462,117110.0,117100.0,0.20290419]
[1760128512471,0.04158,117110.0,117100.0,0.20390419]
[1760128512678,0.72942,117110.0,117100.0,0.24363224]
[1760128512843,0.72942,117110.0,117100.0,0.26735224]
[1760128513243,0.28462,117110.0,117100.0,0.26735224]
[1760128513458,0.72942,117110.0,117100.0,0.26735224]
[1760128513681,0.4442,117120.0,117100.0,0.27450419]
[1760128513881,5.32455,117120.0,117110.0,0.02372]
[1760128514084,6.03798,117120.0,117110.0,0.05583]
[1760128514495,4.86436,117110.0,117100.0,0.24239419]
[1760128515068,0.68784,117110.0,117100.0,0.19551419]
[1760128515314,0.4448,117110.0,117100.0,0.22762419]
[1760128515499,5.32335,117120.0,117110.0,0.1707796]
[1760128515831,5.79374,117120.0,117110.0,0.2028896]
[1760128516458,6.01119,117120.0,117110.0,0.2266096]
[1760128516680,5.32335,117120.0,117110.0,0.2734896]
[1760128516865,0.8878,117120.0,117110.0,0.31262154]
[1760128517126,0.01599,117130.0,117120.0,0.17076502]
[1760128517366,4.88035,117140.0,117130.0,0.17075044]
[1760128517628,5.4269,117140.0,117130.0,0.20286044]
[1760128517829,4.86436,117130.0,117120.0,0.19448502]
[1760128518002,4.86436,117130.0,117120.0,0.24136502]
[1760128518248,4.86436,117130.0,117120.0,0.27347502]
[1760128518723,0.9318875,117130.0,117110.0,0.02372]
[1760128518911,0.24304,117120.0,117110.0,0.19449832]
[1760128519148,0.24304,117120.0,117110.0,0.02372]
[1760128519380,0.24304,117120.0,117100.0,0.24139365]
[1760128519381,1.09068505,117120.0,117100.0,0.19451365]
[1760128519574,0.08896,117110.0,117100.0,0.02372]
[1760128519807,0.08896,117110.0,117100.0,0.27350419]
[1760128520035,0.11986,117110.0,117100.0,0.12662419]
[1760128520246,0.13847,117110.0,117100.0,0.18245419]
[1760128520900,0.13847,117110.0,117100.0,0.18345419]
[1760128521376,0.13847,117110.0,117100.0,0.001]
[1760128521377,0.18539,117110.0,117100.0,0.001]
[1760128521598,0.24717085,117110.0,117100.0,0.001]
[1760128521806,0.1982947,117110.0,117100.0,0.001]
[1760128524619,0.18539,117110.0,117100.0,0.001]
[1760128524865,0.18539,117110.0,117100.0,0.17179419]
[1760128525418,0.26165,117110.0,117100.0,0.20390419]
[1760128525623,0.73739,117110.0,117100.0,0.22762419]
[1760128526056,0.29255,117110.0,117100.0,0.22762419]
[1760128526270,0.70649,117110.0,117100.0,0.27450419]
[1760128526490,0.73739,117110.0,117100.0,0.22762419]
[1760128526712,0.26165,117110.0,117100.0,0.27450419]
[1760128526924,0.70649,117110.0,117100.0,0.27450419]
[1760128527149,0.73739,117110.0,117100.0,0.22762419]
[1760128527411,0.73739,117110.0,117100.0,0.05683]
[1760128527637,0.86855245,117110.0,117100.0,0.001]
[1760128527846,0.78431,117110.0,117100.0,0.001]
[1760128528283,0.79746683,117110.0,117100.0,0.001]
[1760128529580,1.77431148,117110.0,117100.0,0.001]
[1760128530022,7.27867148,117110.0,117100.0,0.001]
[1760128530962,7.63455148,117110.0,117100.0,0.001]
[1760128531192,7.71879393,117110.0,117100.0,0.001]
[1760128531413,6.00182683,117110.0,117100.0,0.001]
[1760128531895,5.91286683,117110.0,117100.0,0.001]
[1760128532173,4.86436,117100.0,117090.0,0.19481155]
[1760128532399,0.08896,117100.0,117090.0,0.19531526]
[1760128532605,0.13703,117100.0,117090.0,0.22538526]
[1760128533524,0.03176683,117110.0,117100.0,0.17079419]
[1760128533748,0.75194683,117110.0,117100.0,0.05408]
[1760128533959,0.75194683,117110.0,117100.0,0.22487419]
[1760128534184,0.75194683,117110.0,117090.0,0.24436526]
[1760128534607,0.75194683,117110.0,117100.0,0.03007]
[1760128534829,0.83618928,117110.0,117090.0,0.24436526]
[1760128536387,0.83618928,117110.0,117090.0,0.14436526]
[1760128536655,0.75194683,117110.0,117090.0,0.14436526]
[1760128537109,0.75194683,117110.0,117100.0,0.03007]
[1760128537522,0.75194683,117110.0,117100.0,0.20086419]
[1760128537741,0.75194683,117110.0,117100.0,0.03007]
[1760128537947,0.75194683,117110.0,117100.0,0.05408]
[1760128538158,0.75194683,117110.0,117100.0,0.22487419]
[1760128538372,0.75194683,117110.0,117100.0,0.02401]
[1760128538582,0.75194683,117110.0,117090.0,0.14436526]
[1760128539269,0.75194683,117110.0,117100.0,0.20086419]
[1760128539494,0.75194683,117110.0,117100.0,0.03007]
[1760128539705,0.75194683,117110.0,117100.0,0.20086419]
[1760128539917,0.78607,117110.0,117090.0,0.14436526]
[1760128540129,0.73879,117110.0,117100.0,0.03007]
[1760128541439,0.73879,117110.0,117100.0,0.27392419]
[1760128541659,0.73879,117110.0,117100.0,0.22487419]
[1760128541877,0.73879,117110.0,117100.0,0.05408]
[1760128542094,0.73879,117110.0,117100.0,0.22487419]
[1760128543460,0.26169,117110.0,117100.0,0.27392419]
[1760128543676,0.70653,117110.0,117100.0,0.27392419]
[1760128545066,0.73867,117110.0,117100.0,0.12487419]
[1760128545257,0.73867,117110.0,117100.0,0.15494419]
[1760128547428,0.78595,117110.0,117100.0,0.12487419]
[1760128547628,1.32600255,117110.0,117100.0,0.15494419]
[1760128548168,1.27872255,117110.0,117100.0,0.15494419]
[1760128548381,0.70653,117110.0,117100.0,0.15494419]
[1760128548591,0.73867,117110.0,117100.0,0.15494419]
[1760128550599,1.35055845,117110.0,117100.0,0.17079419]
[1760128550816,0.44484,117110.0,117100.0,0.24746419]
[1760128551032,0.68792,117110.0,117100.0,0.24746419]
[1760128551474,0.71943,117110.0,117100.0,0.20163419]
[1760128551691,1.32929255,117110.0,117100.0,0.17079419]
[1760128556180,1.28224255,117110.0,117100.0,0.20163419]
[1760128556714,1.32929255,117110.0,117100.0,0.20163419]
[1760128557305,1.28224255,117110.0,117100.0,0.20163419]
[1760128557498,1.32929255,117110.0,117100.0,0.20163419]
[1760128557981,1.32929255,117110.0,117100.0,0.17079419]
[1760128558158,1.32929255,117110.0,117100.0,0.20047419]
[1760128559592,0.78924,117110.0,117100.0,0.20047419]
[1760128559777,0.68792,117110.0,117100.0,0.24899419]
[1760128560206,0.01861,117120.0,117110.0,0.1707796]
[1760128560422,0.01861,117120.0,117110.0,0.2709996]
[1760128560423,0.44484,117120.0,117110.0,0.2709996]
[1760128560619,0.6958879,117120.0,117110.0,0.2709996]
[1760128562431,1.33395045,117120.0,117110.0,0.02202]
[1760128562637,2.04476837,117120.0,117090.0,0.00050371]
[1760128562844,0.56265255,117100.0,117090.0,0.17131248]
[1760128563070,0.80569255,117100.0,117090.0,0.17131248]
[1760128563271,0.88110255,117100.0,117090.0,0.17131248]
[1760128564568,1.05189674,117100.0,117090.0,0.00150371]
[1760128565643,1.72757615,117100.0,117090.0,0.00150371]
[1760128565844,1.56455017,117100.0,117090.0,0.00150371]
[1760128567246,1.57334652,117100.0,117090.0,0.00150371]
[1760128567683,2.1812125,117100.0,117090.0,0.00150371]
[1760128568772,7.0455725,117100.0,117090.0,0.00150371]
[1760128569213,7.4014525,117100.0,117090.0,0.00150371]
[1760128569431,7.4015325,117100.0,117090.0,0.00150371]
[1760128569870,7.4015325,117100.0,117090.0,0.00050371]
[1760128570082,6.3576925,117100.0,117090.0,0.00050371]
[1760128570304,7.4015325,117100.0,117090.0,0.00050371]
[1760128570523,7.72796361,117100.0,117090.0,0.00050371]
[1760128570743,7.42796361,117100.0,117090.0,0.00050371]
[1760128570988,6.21223165,117100.0,117090.0,0.00050371]
[1760128571182,7.42796361,117100.0,117090.0,0.00050371]
[1760128571439,7.40953325,117100.0,117090.0,0.00050371]
[1760128571879,7.40952908,117100.0,117090.0,0.00050371]
[1760128572317,7.85252908,117100.0,117090.0,0.00050371]
[1760128572979,6.63789489,117100.0,117090.0,0.00050371]
[1760128573198,7.8445325,117100.0,117090.0,0.00050371]
[1760128573412,6.62880054,117100.0,117090.0,0.00050371]
[1760128573626,7.8445325,117100.0,117090.0,0.00050371]
[1760128574058,6.62989831,117100.0,117090.0,0.00050371]
[1760128574276,7.8445325,117100.0,117090.0,0.00050371]
[1760128574515,5.40537,117100.0,117090.0,0.17131248]
[1760128574765,6.70115598,117100.0,117090.0,0.00050371]
[1760128575890,6.42895017,117100.0,117090.0,0.00050371]
[1760128576119,7.03681615,117100.0,117090.0,0.00050371]
[1760128577228,5.82108419,117100.0,117090.0,0.00050371]
[1760128577445,7.1210586,117100.0,117090.0,0.00050371]
[1760128579206,7.4770986,117100.0,117090.0,0.00050371]
[1760128580362,7.48508304,117100.0,117090.0,0.00050371]
[1760128580805,6.44112304,117100.0,117090.0,0.00050371]
[1760128581030,7.4770986,117100.0,117090.0,0.00050371]
[1760128581233,7.4850835,117100.0,117090.0,0.00050371]
[1760128581663,6.4411235,117100.0,117090.0,0.00050371]
[1760128581882,7.4850835,117100.0,117090.0,0.00050371]
[1760128582533,7.50347949,117100.0,117090.0,0.00050371]
[1760128583084,7.4850835,117100.0,117090.0,0.00050371]
[1760128583305,7.50347651,117100.0,117090.0,0.00050371]
[1760128583524,7.80347651,117100.0,117090.0,0.00050371]
[1760128587346,7.80347947,117100.0,117090.0,0.00050371]
[1760128588166,7.8194531,117100.0,117090.0,0.00050371]
[1760128588384,7.84252345,117100.0,117090.0,0.00050371]
[1760128590299,8.85114521,117100.0,117090.0,0.00050371]
[1760128590503,8.89971395,117100.0,117090.0,0.00050371]
[1760128591137,7.60384797,117100.0,117090.0,0.00050371]
[1760128591350,8.29184797,117100.0,117090.0,0.00050371]
[1760128591557,8.29185221,117100.0,117090.0,0.00050371]
[1760128591769,7.81628833,117100.0,117090.0,0.00050371]
[1760128592001,8.27460655,117100.0,117090.0,0.00050371]
[1760128594041,8.88247931,117100.0,117090.0,0.00050371]
[1760128594462,8.83653541,117100.0,117090.0,0.00050371]
[1760128595074,8.22866943,117100.0,117090.0,0.00050371]
[1760128596345,8.28984821,117100.0,117090.0,0.00050371]
[1760128597714,8.29000821,117100.0,117090.0,0.00050371]
[1760128597917,8.79000821,117100.0,117090.0,0.00050371]
[1760128598364,5.97516877,117090.0,117080.0,0.0004]
[1760128598584,7.58890128,117090.0,117080.0,0.00052876]
[1760128598791,7.66235128,117090.0,117080.0,0.00052876]
[1760128599010,7.41927128,117090.0,117080.0,0.00052876]
[1760128599236,8.46335128,117090.0,117080.0,0.00052876]
[1760128600654,8.01835128,117090.0,117080.0,0.00052876]
[1760128600873,8.46335128,117090.0,117080.0,0.00052876]
[1760128601086,8.47845098,117090.0,117080.0,0.00052876]
[1760128601304,0.17084603,117070.0,117050.0,0.00894335]
[1760128601521,0.96358598,117060.0,117050.0,0.00045038]
[1760128601735,1.06342787,117060.0,117050.0,0.00045038]
[1760128602804,1.06342787,117060.0,117050.0,0.17231753]
[1760128603491,0.63425787,117060.0,117050.0,0.21576753]
[1760128603711,0.52639189,117060.0,117050.0,0.25982753]
[1760128603940,1.82233787,117060.0,117050.0,0.25982753]
[1760128604366,1.85112787,117060.0,117050.0,0.25982753]
[1760128604574,1.85112787,117060.0,117050.0,0.21576753]
[1760128606667,1.82233787,117060.0,117050.0,0.21576753]
[1760128606930,1.85112787,117060.0,117050.0,0.21576753]
[1760128607563,1.73329787,117060.0,117050.0,0.25982753]
[1760128607765,1.82229787,117060.0,117050.0,0.25982753]
[1760128607969,1.6313367,117060.0,117050.0,0.25982753]
[1760128608315,1.7959057,117060.0,117050.0,0.25982753]
[1760128608513,1.32469598,117060.0,117050.0,0.21576753]
[1760128609917,1.23573598,117060.0,117050.0,0.21576753]
[1760128610123,0.60786598,117060.0,117050.0,0.25960753]
[1760128610333,1.29594598,117060.0,117050.0,0.30578582]
[1760128610750,1.32753598,117060.0,117050.0,0.26194582]
[1760128611164,1.32753598,117060.0,117050.0,0.21576753]
[1760128611368,0.71967,117060.0,117050.0,0.21576753]
[1760128611570,1.32753598,117060.0,117050.0,0.21576753]
[1760128612593,1.29594598,117060.0,117050.0,0.25960753]
[1760128613159,0.60786598,117060.0,117050.0,0.25960753]
[1760128613370,1.29594598,117060.0,117050.0,0.25960753]
[1760128614037,1.32753598,117060.0,117050.0,0.25960753]
[1760128614498,1.29594598,117060.0,117050.0,0.25960753]
[1760128615972,1.29594598,117060.0,117050.0,0.08874038]
[1760128616172,1.32753598,117060.0,117050.0,0.25960753]
[1760128616483,0.71967,117060.0,117050.0,0.21576753]
[1760128616681,1.32753598,117060.0,117050.0,0.21576753]
[1760128617568,4.86436,117070.0,117060.0,0.17084018]
[1760128617779,0.68808,117070.0,117060.0,0.26570018]
[1760128618421,1.29594598,117070.0,117060.0,0.09486]
[1760128618681,1.32681598,117070.0,117060.0,0.05102]
[1760128619070,1.32681598,117070.0,117060.0,0.05202]
[1760128619495,1.35008598,117070.0,117060.0,0.05202]
[1760128620188,0.73053875,117070.0,117060.0,0.22287255]
[1760128620437,1.29594598,117070.0,117060.0,0.27031255]
[1760128620649,1.29594598,117070.0,117060.0,0.31640372]
[1760128621389,1.49765394,117070.0,117060.0,0.05202]
[1760128621604,2.18057346,117070.0,117060.0,0.001]
[1760128622863,0.17085255,117060.0,117050.0,0.00045038]
[1760128623074,1.65289451,117060.0,117050.0,0.00045038]
[1760128623281,1.72753451,117060.0,117050.0,0.00045038]
[1760128624106,1.55668196,117060.0,117050.0,0.00045038]
[1760128624318,0.94881598,117060.0,117050.0,0.03139038]
[1760128624521,0.94881598,117060.0,117050.0,0.00045038]
[1760128624727,0.94881598,117060.0,117050.0,0.00145038]
[1760128625147,0.90504598,117060.0,117050.0,0.05195038]
[1760128625341,0.87417598,117060.0,117050.0,0.22281753]
[1760128625554,0.90504598,117060.0,117050.0,0.22281753]
[1760128626415,0.87417598,117060.0,117050.0,0.22281753]
[1760128626618,0.90504598,117060.0,117050.0,0.05195038]
[1760128626827,1.11966853,117060.0,117050.0,0.05195038]
[1760128627034,1.75836892,117060.0,117050.0,0.00145038]
[1760128627237,6.59189451,117060.0,117050.0,0.00145038]
[1760128627587,5.91680046,117060.0,117050.0,0.00145038]
[1760128627991,5.91680046,117060.0,117050.0,0.00045038]
[1760128628420,5.67376046,117060.0,117050.0,0.00045038]
[1760128628629,5.50290791,117060.0,117050.0,0.00045038]
[1760128628870,6.36180046,117060.0,117050.0,0.00045038]
[1760128629652,5.82116255,117060.0,117050.0,0.00045038]
[1760128630127,6.36180046,117060.0,117050.0,0.00045038]
[1760128630344,5.50290791,117060.0,117050.0,0.00045038]
[1760128630560,5.60654,117060.0,117050.0,0.05095038]
[1760128630771,6.31803046,117060.0,117050.0,0.05095038]
[1760128630989,6.36180046,117060.0,117050.0,0.02001038]
[1760128631202,6.36180046,117060.0,117050.0,0.00045038]
[1760128632263,6.78604291,117060.0,117050.0,0.00045038]
[1760128632483,6.79404365,117060.0,117050.0,0.00045038]
[1760128632713,6.80744451,117060.0,117050.0,0.00045038]
[1760128633132,6.82587772,117060.0,117050.0,0.00045038]
[1760128633550,6.80744451,117060.0,117050.0,0.00045038]
[1760128634477,7.16348451,117060.0,117050.0,0.00045038]
[1760128635143,7.15548377,117060.0,117050.0,0.00045038]
[1760128636977,7.75548377,117060.0,117050.0,0.00045038]
[1760128637200,7.74208291,117060.0,117050.0,0.00045038]
[1760128637431,7.78447467,117060.0,117050.0,0.00045038]
[1760128638394,7.76849038,117060.0,117050.0,0.00045038]
[1760128638868,6.18377247,117060.0,117050.0,0.00045038]
[1760128639142,7.76857038,117060.0,117050.0,0.00045038]
[1760128639603,7.7685584,117060.0,117050.0,0.00045038]
[1760128640030,7.7819596,117060.0,117050.0,0.00045038]
[1760128640448,6.7377996,117060.0,117050.0,0.00045038]
[1760128640660,7.7819596,117060.0,117050.0,0.00045038]
[1760128641512,7.78538646,117060.0,117050.0,0.00045038]
[1760128642675,7.7853805,117060.0,117050.0,0.00045038]
[1760128645157,7.78537989,117060.0,117050.0,0.00045038]
[1760128645788,6.20058198,117060.0,117050.0,0.00045038]
[1760128645998,7.34029989,117060.0,117050.0,0.00045038]
[1760128646204,7.78537989,117060.0,117050.0,0.00045038]
[1760128646590,6.74121989,117060.0,117050.0,0.00045038]
[1760128647016,7.06913744,117060.0,117050.0,0.00045038]
[1760128647240,6.35696558,117060.0,117050.0,0.00045038]
[1760128647474,6.98232166,117060.0,117050.0,0.00045038]
[1760128647681,0.7556212,117060.0,117050.0,0.05095038]
[1760128647898,0.78599,117060.0,117050.0,0.00045038]
[1760128648103,1.49748046,117060.0,117050.0,0.00045038]
[1760128648515,1.32662791,117060.0,117050.0,0.00045038]
[1760128648722,1.33461285,117060.0,117050.0,0.00045038]
[1760128648943,0.10589494,117060.0,117050.0,0.17131753]
[1760128649144,1.33461285,117060.0,117050.0,0.17131753]
[1760128649383,1.29084285,117060.0,117050.0,0.19998753]
[1760128649599,1.33436285,117060.0,117050.0,0.21954753]
[1760128649803,1.33436285,117060.0,117050.0,0.19087753]
[1760128650224,0.60276285,117060.0,117050.0,0.21954753]
[1760128650445,1.5052154,117060.0,117050.0,0.00045038]
[1760128650890,1.29084285,117060.0,117050.0,0.02912038]
[1760128651094,1.5052154,117060.0,117050.0,0.00045038]
[1760128651526,1.58945785,117060.0,117050.0,0.00045038]
[1760128651755,6.45381785,117060.0,117050.0,0.00045038]
[1760128652372,6.47222358,117060.0,117050.0,0.00045038]
[1760128652579,6.38798113,117060.0,117050.0,0.00045038]
[1760128652800,6.36957945,117060.0,117050.0,0.00045038]
[1760128654494,6.38798989,117060.0,117050.0,0.00045038]
[1760128657149,6.74397431,117060.0,117050.0,0.00045038]
[1760128657368,7.28461222,117060.0,117050.0,0.00045038]
[1760128657584,7.15391813,117060.0,117050.0,0.00045038]
[1760128658018,7.18407003,117060.0,117050.0,0.00045038]
[1760128661233,7.54011003,117060.0,117050.0,0.00045038]
[1760128661672,6.49599003,117060.0,117050.0,0.00045038]
[1760128661892,5.84095777,117060.0,117050.0,0.00045038]
[1760128662113,7.10001431,117060.0,117050.0,0.00045038]
[1760128662351,7.12205912,117060.0,117050.0,0.00045038]
[1760128662569,7.12205364,117060.0,117050.0,0.00045038]
[1760128664745,7.12205199,117060.0,117050.0,0.00045038]
[1760128664954,7.20629444,117060.0,117050.0,0.00045038]
[1760128665377,6.16217444,117060.0,117050.0,0.00045038]
[1760128665579,7.20629444,117060.0,117050.0,0.00045038]
[1760128666234,7.20629401,117060.0,117050.0,0.00045038]
[1760128668417,7.1842492,117060.0,117050.0,0.00045038]
[1760128668635,7.6284492,117060.0,117050.0,0.00045038]
[1760128670860,7.6284092,117060.0,117050.0,0.00045038]
[1760128672144,7.1842092,117060.0,117050.0,0.00045038]
[1760128672599,7.1842157,117060.0,117050.0,0.00045038]
[1760128673229,7.09997325,117060.0,117050.0,0.00045038]
[1760128674339,7.39997325,117060.0,117050.0,0.00045038]
[1760128674556,6.95489325,117060.0,117050.0,0.00045038]
[1760128674768,6.35589325,117060.0,117050.0,0.00045038]
[1760128674982,7.39997325,117060.0,117050.0,0.00045038]
[1760128675197,6.4401357,117060.0,117050.0,0.00045038]
[1760128675415,7.48422946,117060.0,117050.0,0.00045038]
[1760128676951,6.44014946,117060.0,117050.0,0.00045038]
[1760128677164,7.18423023,117060.0,117050.0,0.00045038]
[1760128678655,7.09998778,117060.0,117050.0,0.00045038]
[1760128681401,7.1000072,117060.0,117050.0,0.00045038]
[1760128683344,7.12304452,117060.0,117050.0,0.00045038]
[1760128684574,7.1000072,117060.0,117050.0,0.00045038]
[1760128685716,7.09202614,117060.0,117050.0,0.00045038]
[1760128686385,7.01001764,117060.0,117050.0,0.00045038]